fUSD/lending_fUSD_20240115
["ID","MTS","AMOUNT","RATE_DAILY","PERIOD"]
[311667922,1705299055687,-500.0,0.00027397,2]
[311667923,1705299055696,-540.98,0.00027397,2]
[311667924,1705299055706,-500.0,0.00027397,2]
[311667925,1705299055718,-500.0,0.00027397,2]
[311667926,1705299055727,-502.64365155,0.00027397,2]
[311667927,1705299055737,-788.72,0.00027397,2]
[311667928,1705299055747,-500.0,0.00027397,2]
[311667929,1705299055758,-500.0,0.00027397,2]
[311667930,1705299055767,-500.0,0.00027397,2]
[311667931,1705299055776,-500.0,0.00027397,2]
[311667932,1705299055785,-542.84957529,0.00027397,2]
[311667933,1705299055794,-1258.85011669,0.00027397,2]
[311667934,1705299056399,-21794.54988331,0.00027397,2]
[311667935,1705299056410,-500.0,0.00027397,2]
[311667936,1705299056419,-502.22944305,0.00027397,2]
[311667937,1705299056429,-1279.75,0.00027397,2]
[311667938,1705299056438,-584.31,0.00027397,2]
[311667939,1705299056447,-500.0,0.00027397,2]
[311667940,1705299056457,-501.20205494,0.00027397,2]
[311667941,1705299056467,-5768.29,0.00027397,2]
[311667942,1705299056476,-178.28456567,0.00027397,2]
[311667943,1705299056485,-501.48,0.00027397,2]
[311667944,1705299056497,-500.0,0.00027397,2]
[311667945,1705299056506,-500.0,0.00027397,2]
[311667946,1705299056515,-500.0,0.00027397,2]
[311667947,1705299056525,-500.0,0.00027397,2]
[311667948,1705299056535,-723.29,0.00027397,2]
[311667949,1705299056544,-500.0,0.00027397,2]
[311667950,1705299056554,-503.96629587,0.00027397,2]
[311667951,1705299056563,-672.61,0.00027397,2]
[311667952,1705299056573,-910.11,0.00027397,2]
[311667953,1705299056582,-500.0,0.00027397,2]
[311667954,1705299056593,-810.34,0.00027397,2]
[311667955,1705299056603,-500.0,0.00027397,2]
[311667956,1705299056612,-500.0,0.00027397,2]
[311667957,1705299056622,-928.92,0.00027397,2]
[311667958,1705299056631,-503.00877698,0.00027397,2]
[311667959,1705299056641,-685.56,0.00027397,2]
[311667960,1705299056651,-500.0,0.00027397,2]
[311667961,1705299056660,-501.22561324,0.00027397,2]
[311667962,1705299056669,-500.0,0.00027397,2]
[311667963,1705299056679,-500.0,0.00027397,2]
[311667964,1705299056688,-500.0,0.00027397,2]
[311667965,1705299056697,-495.21113443,0.00027397,2]
[311667966,1705299056707,-1744.9,0.00027397,2]
[311667967,1705299056716,-500.0,0.00027397,2]
[311667968,1705299056726,-978.09,0.00027397,2]
[311667969,1705299056735,-500.0,0.00027397,2]
[311667970,1705299056748,-607.46,0.00027397,2]
[311667971,1705299056758,-500.0,0.00027397,2]
[311667972,1705299056769,-508.52538643,0.00027397,2]
[311667973,1705299056778,-500.0,0.00027397,2]
[311667974,1705299056786,-505.36226779,0.00027397,2]
[311667975,1705299056797,-1529.84,0.00027397,2]
[311667976,1705299056806,-500.0,0.00027397,2]
[311667977,1705299056815,-500.0,0.00027397,2]
[311667978,1705299056824,-2407.8,0.00027397,2]
[311667979,1705299056834,-503.69276657,0.00027397,2]
[311667980,1705299056843,-1816.69,0.00027397,2]
[311667981,1705299056852,-500.0,0.00027397,2]
[311667982,1705299056863,-500.0,0.00027397,2]
[311667983,1705299056872,-507.68883075,0.00027397,2]
[311667984,1705299056882,-506.41905693,0.00027397,2]
[311667985,1705299056891,-500.0,0.00027397,2]
[311667986,1705299056900,-500.0,0.00027397,2]
[311667987,1705299056909,-500.0,0.00027397,2]
[311667988,1705299056918,-503.32331759,0.00027397,2]
[311667989,1705299056927,-1404.88,0.00027397,2]
[311667990,1705299056936,-1186.81,0.00027397,2]
[311667991,1705299056947,-506.34902512,0.00027397,2]
[311667992,1705299056957,-500.0,0.00027397,2]
[311667993,1705299056967,-500.0,0.00027397,2]
[311667994,1705299056978,-500.0,0.00027397,2]
[311667995,1705299056990,-500.0,0.00027397,2]
[311667996,1705299057000,-500.0,0.00027397,2]
[311667997,1705299057011,-500.0,0.00027397,2]
[311667998,1705299057020,-500.0,0.00027397,2]
[311667999,1705299057030,-3697.94,0.00027397,2]
[311668000,1705299057120,-500.0,0.00027397,2]
[311668001,1705299057129,-526.20984054,0.00027397,30]
[311668002,1705299057138,-671.14,0.00027397,2]
[311668003,1705299057149,-512.59470606,0.00027397,2]
[311668004,1705299057159,-8169.25,0.00027397,2]
[311668005,1705299057169,-503.31929952,0.00027397,2]
[311668006,1705299057177,-669.76,0.00027397,2]
[311668007,1705299057187,-500.0,0.00027397,2]
[311668008,1705299057195,-2857.28,0.00027397,2]
[311668009,1705299057204,-897.62,0.00027397,2]
[311668010,1705299057214,-500.0,0.00027397,2]
[311668011,1705299057224,-501.22640308,0.00027397,2]
[311668012,1705299057233,-852.28,0.00027397,2]
[311668013,1705299057244,-500.0,0.00027397,2]
[311668014,1705299057254,-500.0,0.00027397,2]
[311668015,1705299057263,-500.0,0.00027397,2]
[311668016,1705299057272,-943.2,0.00027397,2]
[311668017,1705299057282,-1930.71,0.00027397,2]
[311668018,1705299057292,-500.0,0.00027397,2]
[311668019,1705299057302,-500.0,0.00027397,2]
[311668020,1705299057311,-714.75,0.00027397,2]
[311668021,1705299057321,-500.0,0.00027397,2]
[311668022,1705299057331,-1111.86,0.00027397,2]
[311668023,1705299057342,-500.0,0.00027397,2]
[311668024,1705299057352,-500.0,0.00027397,2]
[311668025,1705299057362,-500.0,0.00027397,2]
[311668026,1705299057372,-589.95,0.00027397,2]
[311668027,1705299057383,-1162.72,0.00027397,2]
[311668028,1705299057392,-500.0,0.00027397,2]
[311668029,1705299057401,-9301.1734397,0.00027397,2]
[311668030,1705299057441,-4997.1465603,0.00027397,2]
[311668031,1705299057450,-500.0,0.00027397,2]
[311668032,1705299057460,-1076.32,0.00027397,2]
[311668033,1705299057469,-500.0,0.00027397,2]
[311668034,1705299057479,-500.0,0.00027397,2]
[311668035,1705299057489,-500.0,0.00027397,2]
[311668036,1705299057498,-511.81719337,0.00027397,2]
[311668037,1705299057508,-1085.28,0.00027397,2]
[311668038,1705299057517,-507.38691825,0.00027397,2]
[311668039,1705299057526,-500.0,0.00027397,2]
[311668040,1705299057535,-500.0,0.00027397,2]
[311668041,1705299057545,-500.0,0.00027397,2]
[311668042,1705299057554,-1166.29,0.00027397,2]
[311668043,1705299057563,-500.0,0.00027397,2]
[311668044,1705299057573,-657.45927637,0.00027397,2]
[311668045,1705299057584,-254.66,0.00027397,2]
[311668046,1705299058198,-427.94737022,0.00022436,2]
[311668047,1705299058210,-37.89990422,0.00022436,2]
[311668048,1705299058233,-253.83152955,0.00022436,2]
[311668049,1705299058247,-136.21593645,0.00022436,2]
[311668050,1705299058256,-6306.82261592,0.00027397,2]
[311668051,1705299058633,-316.17811747,0.00022189,2]
[311668052,1705299058643,-238.3035687,0.00022435,2]
[311668053,1705299058652,-381.2,0.00022839,2]
[311668054,1705299058662,-1000.0,0.00025461,3]
[311668055,1705299058673,-3627.46810771,0.00027397,2]
[311668056,1705299058682,-694.05,0.00027397,2]
[311668057,1705299058692,-704.04,0.00027397,2]
[311668058,1705299058702,-2687.75,0.00027397,2]
[311668059,1705299058712,-505.94855482,0.00027397,2]
[311668060,1705299058721,-503.46199713,0.00027397,2]
[311668061,1705299058731,-511.42263624,0.00027397,2]
[311668062,1705299058741,-503.4306377,0.00027397,2]
[311668063,1705299058750,-510.78,0.00027397,2]
[311668064,1705299058759,-2646.06,0.00027397,2]
[311668065,1705299058769,-500.79356902,0.00027397,2]
[311668066,1705299058779,-541.02,0.00027397,2]
[311668067,1705299058789,-508.68099657,0.00027397,2]
[311668068,1705299058799,-500.0,0.00027397,2]
[311668069,1705299058809,-1703.14,0.00027397,2]
[311668070,1705299058818,-500.0,0.00027397,2]
[311668071,1705299058828,-859.96,0.00027397,2]
[311668072,1705299058838,-500.0,0.00027397,2]
[311668073,1705299058847,-793.0037673,0.00027397,2]
[311668074,1705299059772,-278.24112876,0.00022435,2]
[311668075,1705299059786,-34.06880591,0.00022435,2]
[311668076,1705299059798,-294.11,0.0002644,2]
[311668077,1705299059809,-246.2862327,0.00027397,2]
[311668078,1705299059820,-83.53377089,0.00027397,2]
[311668079,1705299059904,-300.16382208,0.00027397,2]
[311668080,1705299059951,-116.30240703,0.00027397,2]
[311668081,1705299059961,-246.54051853,0.00027397,2]
[311668082,1705299059976,-253.45948147,0.00027397,2]
[311668083,1705299059986,-548.61045853,0.00027397,2]
[311668084,1705299818750,-394.95584771,0.00022325,2]
[311668085,1705299818770,-155.0,0.00022326,2]
[311668086,1705299818791,-164.7287992,0.00022326,2]
[311668087,1705299818811,-1495.78662545,0.00022336,2]
[311668088,1705299818833,-262.00595671,0.00022434,2]
[311668089,1705299818857,-2527.52277093,0.00022436,2]
[311668090,1705299826279,-10000.0,0.00022436,2]
[311668091,1705299851718,-580.42562907,0.00022436,2]
[311668092,1705299851739,-19.57437093,0.00023,2]
[311668093,1705299913204,250.0,0.000205,2]
[311668094,1705300029210,-150.0,0.00023,2]
[311668095,1705300042082,-150.0,0.00022999,2]
[311668098,1705300146216,-209.43,0.00022284,2]
[311668099,1705300146237,-140.57,0.00023,2]
[311668100,1705300178011,-9.43,0.00023,2]
[311668122,1705300232873,-199.55,0.00023,2]
[311668124,1705300232883,-164.7287992,0.00023818,2]
[311668126,1705300232893,-201.0,0.00023819,2]
[311668129,1705300232913,-160.0531291,0.000239,2]
[311668131,1705300232923,-1270.08739094,0.00023999,3]
[311668133,1705300232933,-1111.3156567,0.00023999,2]
[311668258,1705300237667,-793.18800703,0.00023999,2]
[311668259,1705300237679,-855.06,0.00023999,2]
[311668260,1705300237690,-342.82992223,0.00023999,2]
[311668261,1705300237760,-14477.08050666,0.00023999,2]
[311668262,1705300237769,-863.22,0.00024,2]
[311668263,1705300237779,-5692.02220698,0.00024,2]
[311668264,1705300237789,-1495.78662544,0.00024056,2]
[311668265,1705300237798,-428.44890579,0.00024063,2]
[311668266,1705300237807,-327.83918474,0.00024063,2]
[311668267,1705300237817,-176.69,0.00024066,2]
[311668268,1705300237826,-499.99,0.00024066,2]
[311668269,1705300237835,-500.0,0.00024073,2]
[311668270,1705300237845,-4629.5,0.00024073,2]
[311668271,1705300237854,-381.2,0.00024073,2]
[311668272,1705300237864,-599.85,0.00024073,2]
[311668273,1705300237874,-259.08,0.00024087,2]
[311668274,1705300237883,-9146.50660108,0.00024156,2]
[311668275,1705300237893,-260.54,0.00024411,2]
[311668276,1705300237903,-1398.095,0.00024461,2]
[311668277,1705300237912,-19692.0,0.00024461,2]
[311668278,1705300237921,-2903.0,0.00024461,2]
[311668279,1705300237931,-2272.0,0.00024461,2]
[311668280,1705300237940,-150.0,0.00024461,2]
[311668281,1705300237949,-209.43,0.00024547,2]
[311668282,1705300237959,-16280.8642,0.000246,2]
[311668283,1705300237968,-159.07,0.00024641,2]
[311668284,1705300237977,-250.0,0.00024658,2]
[311668285,1705300237986,-37834.79365625,0.000247,2]
[311668286,1705300237999,-5380.20634375,0.000247,2]
[311668287,1705300238008,-3736.0,0.000247,2]
[311668288,1705300238018,-500.0,0.000247,2]
[311668289,1705300238027,-160.05312906,0.00024749,2]
[311668290,1705300238036,-1350.0,0.00025,3]
[311668291,1705300238046,-151.32620992,0.00025009,2]
[311668292,1705300238055,-259.08,0.00025065,2]
[311668293,1705300238065,-994.0,0.000252,2]
[311668294,1705300238075,-14775.58456056,0.00025453,3]
[311668295,1705300238086,-500.0,0.00025453,3]
[311668296,1705300238096,-162.49887586,0.00025453,3]
[311668297,1705300238105,-1000.0,0.00025453,3]
[311668298,1705300238115,-1594.99793312,0.00025453,3]
[311668299,1705300238125,-309.16507328,0.00025453,3]
[311668300,1705300238136,-183.71196122,0.00025453,3]
[311668301,1705300238145,-1768.2329308,0.00025453,3]
[311668302,1705300238156,-1000.0,0.00025455,3]
[311668303,1705300238165,-462.85,0.00025546,2]
[311668304,1705300238175,-500.0,0.00025571,2]
[311668305,1705300238185,-200.0,0.00025571,2]
[311668306,1705300238195,-160.05312906,0.00025598,2]
[311668307,1705300238204,-1000.0,0.000256,2]
[311668308,1705300238215,-1000.0,0.000256,2]
[311668309,1705300238226,-405.72938623,0.00025648,2]
[311668310,1705300238237,-201.0,0.00025723,5]
[311668311,1705300238247,-50000.0,0.00025863,2]
[311668312,1705300238257,-155.5219049,0.00025908,2]
[311668313,1705300238266,-150.0,0.00026009,2]
[311668314,1705300238278,-1000.0,0.00026027,2]
[311668315,1705300238288,-259.08,0.00026044,2]
[311668316,1705300238297,-3761.25258545,0.00026069,2]
[311668318,1705300238306,-150.0,0.00026079,2]
[311668319,1705300238315,-3761.25258545,0.00026172,2]
[311668321,1705300238324,-159.07,0.00026186,2]
[311668323,1705300238333,-159.69,0.00026268,2]
[311668324,1705300238342,-3761.25258545,0.00026274,2]
[311668326,1705300238351,-813.27,0.00026341,2]
[311668328,1705300238360,-3761.25258545,0.00026376,2]
[311668329,1705300238368,-324.3201233,0.00026396,2]
[311668331,1705300238377,-668.48693,0.000264,2]
[311668333,1705300238386,-1487.52,0.00026438,2]
[311668335,1705300238396,-160.05312906,0.00026447,2]
[311668336,1705300238404,-3761.25258545,0.00026478,2]
[311668338,1705300238413,-150.0,0.00026524,2]
[311668340,1705300238422,-628.68,0.00026524,2]
[311668342,1705300238432,-294.11,0.00026524,2]
[311668344,1705300238440,-300.0,0.00026524,2]
[311668345,1705300238450,-150.0,0.00026524,2]
[311668347,1705300238459,-294.11,0.00026524,2]
[311668349,1705300238469,-408.31,0.00026524,2]
[311668351,1705300238478,-150.0,0.00026524,2]
[311668354,1705300238493,-150.0,0.00026524,2]
[311668356,1705300238509,-418.16,0.00026524,2]
[311668358,1705300238521,-294.11,0.00026524,2]
[311668360,1705300238535,-150.0,0.00026524,2]
[311668363,1705300238549,-150.0,0.00026524,2]
[311668365,1705300238563,-10961.46,0.00026575,2]
[311668367,1705300238580,-294.11,0.00026575,2]
[311668370,1705300238593,-150.0,0.00026575,2]
[311668372,1705300238606,-628.5,0.00026575,2]
[311668374,1705300238618,-150.0,0.00026575,2]
[311668376,1705300238631,-634.23190517,0.0002658,2]
[311668378,1705300238645,-1878.39872668,0.00026581,2]
[311668381,1705300238670,-1092.0649717,0.00026581,2]
[311668399,1705300238853,-790.78888707,0.00026581,2]
[311668401,1705300238866,-1000.0,0.000266,2]
[311668404,1705300238880,-1000.0,0.000266,2]
[311668406,1705300238894,-356.23,0.00026603,2]
[311668408,1705300238905,-294.16,0.00026603,2]
[311668410,1705300238915,-294.16,0.00026603,2]
[311668412,1705300238932,-294.16,0.00026603,2]
[311668414,1705300238944,-294.16,0.00026603,2]
[311668416,1705300238957,-294.16,0.00026603,2]
[311668418,1705300238969,-150.0,0.00026658,2]
[311668421,1705300238980,-150.0,0.00026658,2]
[311668423,1705300238992,-150.0,0.00026658,2]
[311668425,1705300239004,-301.72,0.00026658,2]
[311668427,1705300239015,-3761.25258545,0.00026683,2]
[311668429,1705300239027,-2195.30808788,0.00026785,2]
[311668432,1705300239042,-392.92178369,0.00026785,2]
[311668434,1705300239056,-881.44046334,0.00026785,2]
[311668436,1705300239070,-291.58225054,0.00026785,2]
[311668439,1705300239083,-209.43,0.00026811,2]
[311668441,1705300239094,-125.13073499,0.00026849,2]
[311668443,1705300239114,-24.86926501,0.00026849,2]
[311668446,1705300239127,-150.0,0.00026849,2]
[311668448,1705300239139,-345.7457826,0.00026849,2]
[311668543,1705300240143,-62.5642174,0.00026849,2]
[311668546,1705300240156,-418.16,0.00026849,2]
[311668548,1705300240169,-150.0,0.00026849,2]
[311668550,1705300240181,-273.33735834,0.00026849,2]
[311668613,1705300242488,-426.0,0.00024461,2]
[311668615,1705300242499,-782.499,0.00024461,2]
[311668616,1705300242509,-144.82264166,0.00026849,2]
[311668617,1705300242520,-150.0,0.00026849,2]
[311668618,1705300242531,-150.0,0.00026849,2]
[311668619,1705300242542,-408.31,0.00026849,2]
[311668620,1705300242551,-303.84,0.00026849,2]
[311668621,1705300242562,-3761.25258545,0.00026888,2]
[311668623,1705300242571,-1000.0,0.000269,2]
[311668625,1705300242582,-1255.20321227,0.0002699,2]
[311668628,1705300242599,-694.57645611,0.0002699,2]
[311668643,1705300242720,-541.16397787,0.0002699,2]
[311668700,1705300245740,-150.0,0.00026575,2]
[311668701,1705300245751,-183.231228,0.00026575,2]
[311668702,1705300245803,-116.768772,0.00026575,2]
[311668703,1705300245812,-418.16,0.00026849,2]
[311668704,1705300245822,-233.13507175,0.00026849,2]
[311668705,1705300245833,-175.17492825,0.00026849,2]
[311668706,1705300245842,-150.0,0.00026849,2]
[311668707,1705300245852,-1270.3089392,0.0002699,2]
[311668708,1705300245862,-630.26679258,0.00026998,2]
[311668709,1705300245871,-155.63498187,0.00026998,2]
[311668710,1705300245880,-202.19014222,0.00026998,2]
[311668711,1705300245891,-413.31232012,0.00026998,2]
[311668712,1705300245907,-242.50595641,0.00026998,2]
[311668713,1705300245916,-158.40989739,0.00026998,2]
[311668714,1705300245926,-1077.39257435,0.00026998,2]
[311668715,1705300245935,-1415.24839978,0.00026998,2]
[311668716,1705300245944,-465.0,0.00026998,2]
[311668717,1705300245953,-155.20584437,0.00026998,2]
[311668718,1705300245962,-235.49857542,0.00026998,2]
[311668719,1705300245972,-475.8385292,0.00026998,2]
[311668720,1705300245981,-246.50580772,0.00026998,2]
[311668721,1705300245990,-188.62818561,0.00026999,2]
[311668722,1705300245999,-400.0,0.00026999,2]
[311668723,1705300246009,-155.75990415,0.00026999,2]
[311668724,1705300246018,-3967.95315397,0.00027,2]
[311668731,1705300246161,-14719.56046818,0.00027,2]
[311668732,1705300927000,201.0,0.00021819,2]
[311668733,1705300998227,171.47,0.00016712,2]
[311668734,1705301007337,156.71115107,0.00021819,2]
[311668735,1705301025336,157.5724284,0.00021819,2]
[311668736,1705301411134,250.0,0.000205,2]
[311668748,1705301432003,-222.90204875,0.00022791,4]
[311668749,1705301432013,-120.71265125,0.00022792,2]
[311668750,1705301432064,-44.01614795,0.00022792,2]
[311668751,1705301432074,-201.0,0.00022828,2]
[311668752,1705301432083,-214.48,0.00023029,2]
[311668753,1705301432092,-217.92915205,0.00024251,2]
[311668758,1705301437804,-5474.09305493,0.00024251,2]
[311668759,1705301437814,-4340.57,0.00024252,2]
[311668760,1705301437824,-750.0,0.00024254,2]
[311668761,1705301437833,-150.0,0.00024266,2]
[311668762,1705301437843,-158.61924143,0.00024332,2]
[311668763,1705301437853,-150.0,0.00024411,2]
[311668764,1705301437862,-172.514,0.00024431,2]
[311668765,1705301437871,-3370.524,0.00024431,2]
[311668766,1705301437880,-2272.0,0.00024431,2]
[311668767,1705301437890,-2903.0,0.00024431,2]
[311668768,1705301437899,-806.43,0.00024581,2]
[311668769,1705301437908,-10000.0,0.00024625,2]
[311668770,1705301437918,-250.0,0.00024658,2]
[311668771,1705301437927,-23900.0,0.00024698,2]
[311668772,1705301437937,-2705.0,0.00024698,2]
[311668773,1705301437946,-38894.0,0.000247,2]
[311668774,1705301437956,-500.0,0.000247,2]
[311668775,1705301437965,-963.89,0.00024849,2]
[311668776,1705301437974,-183.2,0.00024852,2]
[311668777,1705301437983,-2175.09,0.00024852,2]
[311668778,1705301437992,-250.0,0.00024857,2]
[311668779,1705301438002,-200.0,0.00024879,2]
[311668780,1705301438013,-322.25,0.00024879,2]
[311668781,1705301438022,-201.0,0.00024893,5]
[311668782,1705301438032,-500.0,0.00024912,2]
[311668783,1705301438041,-1428.76,0.00024971,2]
[311668784,1705301438050,-2000.0,0.00025003,2]
[311668785,1705301438060,-200.0,0.00025011,2]
[311668786,1705301438069,-433.62,0.00025028,2]
[311668787,1705301438079,-14462.05,0.00025029,2]
[311668788,1705301438088,-163.21,0.00025058,2]
[311668789,1705301438097,-183.0,0.00025071,2]
[311668790,1705301438107,-42.86541005,0.00025073,2]
[311668791,1705301438149,-115.75383136,0.00025073,2]
[311668792,1705301438162,-10459.8876,0.00025104,2]
[311668793,1705301438171,-3352.2211,0.00025122,2]
[311668794,1705301438181,-405.32,0.00025222,2]
[311668795,1705301438190,-737.36,0.00025225,2]
[311668796,1705301438200,-167.66,0.00025283,2]
[311668797,1705301438209,-214.48,0.00025293,2]
[311668798,1705301438218,-154.41,0.00025323,2]
[311668799,1705301438228,-725.11,0.00025332,2]
[311668800,1705301438237,-2937.21649396,0.00025344,2]
[311668801,1705301438247,-499.99,0.00025354,2]
[311668802,1705301438257,-994.0,0.000254,2]
[311668803,1705301438266,-1000.0,0.00025444,3]
[311668804,1705301438275,-152.20176513,0.00025444,3]
[311668805,1705301438285,-526.06052528,0.00025444,3]
[311668806,1705301438294,-10647.09566742,0.00025444,3]
[311668807,1705301438304,-237.80072059,0.00025444,3]
[311668808,1705301438314,-578.01870066,0.00025444,3]
[311668809,1705301438323,-1000.0,0.00025444,3]
[311668811,1705301438332,-158.95514268,0.00025444,3]
[311668813,1705301438341,-225.0,0.00025444,3]
[311668815,1705301438351,-1000.0,0.00025444,3]
[311668817,1705301438360,-165.54065188,0.00025444,3]
[311668819,1705301438370,-714.11,0.00025446,2]
[311668820,1705301438378,-2937.21649396,0.00025447,2]
[311668821,1705301438387,-2937.21649396,0.0002555,2]
[311668822,1705301438397,-2000.0,0.000256,2]
[311668823,1705301438406,-161.51,0.00025605,2]
[311668824,1705301438416,-1000.0,0.0002565,2]
[311668825,1705301438425,-2937.21649396,0.00025652,2]
[311668826,1705301438434,-211.15,0.00025702,2]
[311668827,1705301438443,-314.34,0.00025702,2]
[311668828,1705301438453,-299.01,0.00025702,2]
[311668829,1705301438462,-150.0,0.00025702,2]
[311668830,1705301438471,-314.34,0.00025702,2]
[311668831,1705301438480,-588.22,0.00025702,2]
[311668832,1705301438489,-300.0,0.00025702,2]
[311668833,1705301438499,-294.11,0.00025702,2]
[311668834,1705301438508,-314.34,0.00025702,2]
[311668835,1705301438518,-150.0,0.00025702,2]
[311668836,1705301438527,-150.0,0.00025702,2]
[311668837,1705301438536,-823.23,0.00025702,2]
[311668838,1705301438545,-314.34,0.00025702,2]
[311668839,1705301438554,-588.22,0.00025702,2]
[311668840,1705301438563,-163.21,0.00025711,2]
[311668841,1705301438572,-300.0,0.00025753,2]
[311668842,1705301438581,-150.0,0.00025753,2]
[311668843,1705301438590,-408.31,0.00025753,2]
[311668844,1705301438600,-408.31,0.00025753,2]
[311668845,1705301438609,-302.59,0.00025753,2]
[311668846,1705301438618,-408.1,0.00025753,2]
[311668847,1705301438627,-418.16,0.00025753,2]
[311668848,1705301438636,-2937.21649396,0.00025755,2]
[311668849,1705301438646,-158.61924141,0.00025814,2]
[311668850,1705301438655,-322.25,0.00025857,2]
[311668851,1705301438665,-622.80927141,0.00025858,2]
[311668852,1705301438976,-2314.40722255,0.00025858,2]
[311668853,1705301439034,-325.35893088,0.0002593,2]
[311668854,1705301439044,-383.86171178,0.00025949,2]
[311668855,1705301439053,-29708.19196976,0.00025951,2]
[311668868,1705301440277,-955.89405285,0.00025951,2]
[311668879,1705301440394,-1000.0,0.00025951,2]
[311668881,1705301441177,-776.99749995,0.00025951,2]
[311668885,1705301443726,-418.16,0.00025753,2]
[311668886,1705301443735,-3958.033987,0.00025951,2]
[311668887,1705301443746,-4970.76410735,0.00025951,2]
[311668888,1705301443961,-8630.11838309,0.00025951,2]
[311668889,1705301443970,-2937.21649396,0.00025961,2]
[311668890,1705301443979,-150.0,0.00026027,2]
[311668891,1705301443988,-379.76,0.00026027,2]
[311668892,1705301443998,-150.0,0.00026027,2]
[311668893,1705301444007,-2937.21649396,0.00026064,2]
[311668894,1705301444017,-150.0,0.00026079,2]
[311668895,1705301444026,-2937.21649396,0.00026166,2]
[311668896,1705301444035,-150.0,0.00026178,2]
[311668897,1705301444044,-408.31,0.00026178,2]
[311668898,1705301444053,-150.0,0.00026178,2]
[311668899,1705301444062,-425.85,0.00026178,2]
[311668900,1705301444072,-1239.25964621,0.00026244,2]
[311668902,1705301444082,-723.83,0.00026244,2]
[311668903,1705301444091,-207.3,0.00026245,2]
[311668904,1705301444100,-2937.21649396,0.00026269,2]
[311668905,1705301444109,-150.0,0.00026278,2]
[311668906,1705301444118,-403.35,0.00026278,2]
[311668907,1705301444128,-150.0,0.00026278,2]
[311668908,1705301444138,-150.0,0.00026278,2]
[311668910,1705301444147,-408.31,0.00026278,2]
[311668912,1705301444156,-150.0,0.00026278,2]
[311668914,1705301444165,-418.16,0.00026278,2]
[311668916,1705301444173,-352.1,0.00026396,2]
[311668918,1705301444183,-324.3201233,0.00026396,2]
[311668920,1705301444192,-150.54339926,0.000264,2]
[311668922,1705301444201,-537.15,0.00026524,2]
[311668924,1705301444210,-418.07,0.00026524,2]
[311668926,1705301444219,-418.07,0.00026524,2]
[311668928,1705301444228,-926.22,0.00026524,2]
[311668930,1705301444237,-294.16,0.00026524,2]
[311668932,1705301444246,-150.0,0.00026524,2]
[311668934,1705301444255,-158.61924141,0.00026555,2]
[311668936,1705301444264,-9134.55,0.00026575,2]
[311668938,1705301444274,-1826.91,0.00026575,2]
[311668939,1705301444284,-418.16,0.00026575,2]
[311668940,1705301444293,-300.0,0.00026575,2]
[311668941,1705301444302,-628.5,0.00026575,2]
[311668942,1705301444313,-294.11,0.00026575,2]
[311668943,1705301444322,-150.0,0.00026575,2]
[311668944,1705301444331,-150.0,0.00026575,2]
[311668945,1705301444340,-150.0,0.00026575,2]
[311668946,1705301444349,-418.16,0.00026575,2]
[311668947,1705301444358,-150.0,0.00026575,2]
[311668948,1705301444367,-418.16,0.00026575,2]
[311668949,1705301444376,-294.11,0.00026575,2]
[311668950,1705301444385,-300.0,0.00026575,2]
[311668951,1705301444395,-150.0,0.00026575,2]
[311668952,1705301444404,-628.68,0.00026575,2]
[311668953,1705301444414,-2000.0,0.000266,2]